fUSD/lending_fUSD_20240215
["ID","MTS","AMOUNT","RATE_DAILY","PERIOD"]
[314133690,1708015850494,-536.52,0.00038356,7]
[314133691,1708015850503,-697.14,0.00038356,7]
[314133692,1708015850512,-500.0,0.00038356,7]
[314133693,1708015850521,-500.0,0.00038356,7]
[314133694,1708015850530,-1174.19,0.00038356,7]
[314133695,1708015850540,-597.92,0.00038356,7]
[314133696,1708015850549,-502.14701317,0.00038356,7]
[314133697,1708015850558,-500.0,0.00038356,7]
[314133698,1708015850567,-500.0,0.00038356,7]
[314133699,1708015850576,-537.8573434,0.00038356,7]
[314133700,1708015850585,-500.0,0.00038356,7]
[314133701,1708015850594,-500.0,0.00038356,7]
[314133702,1708015850603,-500.0,0.00038356,7]
[314133703,1708015850612,-655.12,0.00038356,7]
[314133704,1708015850621,-500.0,0.00038356,7]
[314133705,1708015850631,-500.0,0.00038356,7]
[314133706,1708015850640,-766.75,0.00038356,7]
[314133707,1708015850649,-846.9,0.00038356,7]
[314133708,1708015850659,-449.50435322,0.00038356,7]
[314133709,1708015850667,-1301.72,0.00038356,7]
[314133710,1708015850676,-500.0,0.00038356,7]
[314133711,1708015850685,-500.0,0.00038356,7]
[314133712,1708015850695,-500.0,0.00038356,7]
[314133713,1708015850704,-500.0,0.00038356,7]
[314133714,1708015850714,-2085.68,0.00038356,7]
[314133715,1708015850723,-4304.56,0.00038356,7]
[314133716,1708015850732,-500.0,0.00038356,7]
[314133717,1708015850742,-500.0,0.00038356,7]
[314133718,1708015850752,-508.99320083,0.00038356,6]
[314133719,1708015850761,-513.64108635,0.00038356,7]
[314133720,1708015850770,-500.0,0.00038356,7]
[314133721,1708015850779,-500.0,0.00038356,7]
[314133722,1708015850789,-500.0,0.00038356,7]
[314133723,1708015850799,-790.21,0.00038356,7]
[314133724,1708015850808,-500.0,0.00038356,5]
[314133725,1708015850817,-500.0,0.00038356,7]
[314133726,1708015850826,-500.0,0.00038356,7]
[314133727,1708015850835,-500.0,0.00038356,7]
[314133728,1708015850844,-500.0,0.00038356,7]
[314133729,1708015850854,-2991.65,0.00038356,7]
[314133730,1708015850863,-500.0,0.00038356,7]
[314133731,1708015850873,-500.0,0.00038356,7]
[314133732,1708015850882,-500.0,0.00038356,7]
[314133733,1708015850891,-250.0,0.00038356,5]
[314133734,1708015850900,-500.0,0.00038356,7]
[314133735,1708015850909,-500.0,0.00038356,7]
[314133736,1708015850918,-9001.65,0.00038356,7]
[314133737,1708015850928,-500.0,0.00038356,7]
[314133738,1708015850937,-1734.34,0.00038356,7]
[314133739,1708015850946,-2339.39,0.00038356,7]
[314133740,1708015850955,-500.0,0.00038356,7]
[314133741,1708015850965,-500.0,0.00038356,7]
[314133742,1708015850974,-3392.66,0.00038356,7]
[314133743,1708015850983,-500.0,0.00038356,7]
[314133744,1708015850993,-500.0,0.00038356,7]
[314133745,1708015851002,-891.06,0.00038356,7]
[314133746,1708015851012,-500.0,0.00038356,7]
[314133747,1708015851022,-500.0,0.00038356,7]
[314133748,1708015851031,-513.72664681,0.00038356,7]
[314133749,1708015851041,-500.0,0.00038356,7]
[314133750,1708015851051,-744.8,0.00038356,7]
[314133751,1708015851060,-500.0,0.00038356,7]
[314133752,1708015851190,-500.0,0.00038356,7]
[314133753,1708015851201,-504.18536811,0.00038356,7]
[314133754,1708015851212,-151.0,0.00038356,7]
[314133755,1708015851222,-151.0,0.00038356,7]
[314133756,1708015851231,-151.0,0.00038356,7]
[314133757,1708015851241,-151.0,0.00038356,2]
[314133758,1708015851250,-151.0,0.00038356,2]
[314133759,1708015851260,-151.0,0.00038356,2]
[314133760,1708015851270,-151.0,0.00038356,2]
[314133761,1708015851279,-151.0,0.00038356,7]
[314133762,1708015851289,-151.0,0.00038356,7]
[314133763,1708015851299,-151.0,0.00038356,7]
[314133764,1708015851308,-151.0,0.00038356,7]
[314133765,1708015851319,-151.0,0.00038356,7]
[314133766,1708015851328,-151.0,0.00038356,7]
[314133767,1708015851338,-151.0,0.00038356,7]
[314133768,1708015851350,-151.0,0.00038356,7]
[314133769,1708015851360,-151.921049,0.00038356,7]
[314133770,1708015851370,-151.0,0.00038356,7]
[314133771,1708015851379,-185.859569,0.00038356,7]
[314133772,1708015851389,-303.511051,0.00038356,7]
[314133773,1708015851399,-303.511051,0.00038356,7]
[314133774,1708015851409,-303.511051,0.00038356,7]
[314133775,1708015851419,-303.511051,0.00038356,7]
[314133776,1708015851428,-151.0,0.00038356,7]
[314133777,1708015851438,-151.0,0.00038356,7]
[314133778,1708015851447,-151.0,0.00038356,7]
[314133779,1708015851457,-151.0,0.00038356,7]
[314133780,1708015851469,-151.0,0.00038356,7]
[314133781,1708015851478,-151.0,0.00038356,7]
[314133782,1708015851488,-151.0,0.00038356,7]
[314133783,1708015851497,-151.0,0.00038356,7]
[314133784,1708015851506,-151.0,0.00038356,7]
[314133785,1708015851516,-151.0,0.00038356,7]
[314133786,1708015851525,-151.0,0.00038356,7]
[314133787,1708015851534,-151.0,0.00038356,7]
[314133788,1708015851544,-151.0,0.00038356,7]
[314133789,1708015851552,-199.02167,0.00038356,7]
[314133790,1708015851562,-151.0,0.00038356,7]
[314133791,1708015851572,-151.0,0.00038356,7]
[314133792,1708015851582,-151.0,0.00038356,7]
[314133793,1708015851592,-3986.26,0.00038356,15]
[314133794,1708015851602,-151.0,0.00038356,7]
[314133795,1708015851611,-151.0,0.00038356,7]
[314133796,1708015851621,-155.74,0.00038356,2]
[314133797,1708015851630,-151.0,0.00038356,7]
[314133798,1708015851640,-151.0,0.00038356,7]
[314133799,1708015851649,-150.0,0.00038372,2]
[314133800,1708015851659,-200.0,0.00038383,20]
[314133801,1708015851668,-639.33,0.00038383,2]
[314133802,1708015851678,-150.0,0.00038396,2]
[314133803,1708015851687,-1000.0,0.000384,7]
[314133804,1708015851696,-150.0,0.000384,2]
[314133805,1708015851705,-182.37,0.00038413,2]
[314133806,1708015851716,-150.0,0.00038428,2]
[314133807,1708015851726,-150.0,0.00038429,2]
[314133808,1708015851735,-212.0,0.0003843,2]
[314133809,1708015851745,-212.0,0.0003843,2]
[314133810,1708015851754,-1376.515,0.00038437,2]
[314133811,1708015851763,-281.624,0.00038437,2]
[314133812,1708015851773,-2834.0,0.00038437,2]
[314133813,1708015851782,-1864.0,0.00038437,2]
[314133814,1708015851791,-841.0,0.00038437,2]
[314133815,1708015851800,-953.0,0.00038437,2]
[314133816,1708015851810,-539.491,0.00038437,2]
[314133817,1708015851819,-1254.0,0.00038437,2]
[314133818,1708015851828,-708.0,0.00038437,2]
[314133819,1708015851837,-1948.0,0.00038437,2]
[314133820,1708015851846,-1231.0,0.00038437,2]
[314133821,1708015851855,-329.952,0.00038437,2]
[314133822,1708015851864,-857.0,0.00038437,2]
[314133823,1708015851873,-453.97,0.00038437,2]
[314133824,1708015851882,-1009.149,0.00038437,2]
[314133825,1708015851892,-238.293,0.00038437,2]
[314133826,1708015851900,-1138.0,0.00038437,2]
[314133827,1708015851909,-151.641,0.00038437,2]
[314133828,1708015851918,-434.462,0.00038437,2]
[314133829,1708015851927,-343.0,0.00038437,2]
[314133830,1708015851936,-596.463,0.00038437,2]
[314133831,1708015851945,-158.219,0.00038437,2]
[314133832,1708015851954,-200.0,0.00038437,2]
[314133833,1708015851965,-3322.656,0.00038437,2]
[314133834,1708015851974,-2511.656,0.00038437,2]
[314133835,1708015851984,-15217.96121765,0.00038437,2]
[314133836,1708015852353,-4623.03878235,0.00038437,2]
[314133837,1708015852366,-7415.0,0.00038437,2]
[314133838,1708015852375,-2926.0,0.00038437,2]
[314133839,1708015852385,-2289.0,0.00038437,2]
[314133840,1708015852395,-4059.0,0.00038437,2]
[314133841,1708015852404,-8162.0,0.00038437,2]
[314133842,1708015852414,-150.41,0.00038437,2]
[314133843,1708015852423,-151.0,0.00038437,2]
[314133844,1708015852435,-151.0,0.00038437,2]
[314133845,1708015852445,-1037.0,0.00038437,2]
[314133846,1708015852454,-152.011,0.00038437,2]
[314133847,1708015852466,-150.191,0.00038437,2]
[314133848,1708015852475,-151.0,0.00038437,7]
[314133849,1708015852484,-151.0,0.00038437,7]
[314133850,1708015852494,-151.0,0.00038437,7]
[314133851,1708015852503,-300.0,0.00038446,2]
[314133852,1708015852512,-200.0,0.00038451,20]
[314133853,1708015852521,-150.0,0.00038454,2]
[314133854,1708015852530,-150.0,0.00038459,2]
[314133855,1708015852540,-568.84090142,0.0003846,2]
[314133856,1708015852550,-150.0,0.00038461,2]
[314133857,1708015852559,-5889.04865718,0.00038464,11]
[314133858,1708015852569,-150.0,0.00038479,2]
[314133859,1708015852579,-150.0,0.00038483,2]
[314133860,1708015852588,-1500.0,0.00038488,2]
[314133861,1708015852598,-150.0,0.00038491,2]
[314133862,1708015852607,-177.34,0.00038496,2]
[314133863,1708015852616,-1404.22160265,0.00038501,2]
[314133864,1708015852626,-318.57,0.00038502,2]
[314133865,1708015852636,-150.0,0.00038504,2]
[314133866,1708015852646,-200.0,0.00038519,20]
[314133867,1708015852655,-1149.91139242,0.0003853,29]
[314133868,1708015852665,-217.52444167,0.00038537,2]
[314133869,1708015852674,-150.0,0.00038539,2]
[314133870,1708015852684,-150.0,0.0003854,2]
[314133871,1708015852692,-271.20696059,0.00038549,2]
[314133872,1708015852702,-150.0,0.00038562,2]
[314133873,1708015852712,-2491.22558186,0.00038566,2]
[314133874,1708015852722,-8825.45967986,0.00038566,2]
[314133875,1708015852735,-3740.26556089,0.00038566,2]
[314133876,1708015852744,-639.33,0.00038579,2]
[314133877,1708015852753,-200.0,0.00038588,15]
[314133878,1708015852763,-800.0,0.00038588,15]
[314133879,1708015852773,-200.0,0.00038588,20]
[314133880,1708015852783,-500.0,0.00038588,20]
[314133881,1708015852792,-150.0,0.00038593,2]
[314133882,1708015852801,-1000.0,0.000386,2]
[314133883,1708015852810,-150.0,0.00038611,2]
[314133884,1708015852819,-152.85463446,0.00038615,2]
[314133885,1708015852829,-151.0,0.0003862,7]
[314133886,1708015852838,-151.0,0.0003862,7]
[314133887,1708015852848,-5889.04865718,0.00038624,12]
[314133888,1708015852857,-666.94441852,0.00038627,2]
[314133889,1708015852866,-182.37,0.0003863,2]
[314133890,1708015852875,-500.0,0.0003863,7]
[314133891,1708015852885,-338.34276251,0.0003863,7]
[314133892,1708015852895,-648.21296606,0.0003863,7]
[314133893,1708015852904,-213.92057976,0.0003863,7]
[314133894,1708015852916,-145.62489761,0.0003863,7]
[314133895,1708015852926,-500.0,0.0003863,7]
[314133896,1708015852935,-408.88479502,0.0003863,7]
[314133897,1708015852945,-261.30530736,0.0003863,7]
[314133898,1708015853257,-500.0,0.00031,3]
[314133899,1708015853268,-550.0,0.00033,3]
[314133900,1708015853278,-174.3986915,0.00038356,7]
[314133901,1708015853292,-325.6013085,0.00038356,7]
[314133902,1708015853301,-238.69469264,0.0003863,7]
[314133903,1708015853311,-151.0,0.0003863,7]
[314133904,1708015853323,-500.0,0.0003863,7]
[314133905,1708015853333,-503.24589156,0.0003863,7]
[314133906,1708015853343,-593.17921467,0.0003863,7]
[314133907,1708015853357,-500.0,0.0003863,7]
[314133908,1708015853367,-500.0,0.0003863,7]
[314133909,1708015853378,-500.0,0.0003863,7]
[314133910,1708015853388,-500.0,0.0003863,7]
[314133911,1708015853397,-619.52848031,0.0003863,7]
[314133912,1708015853406,-521.11424411,0.0003863,7]
[314133913,1708015853416,-478.90997492,0.0003863,7]
[314133914,1708015853426,-500.0,0.0003863,7]
[314133915,1708015853436,-517.55564951,0.0003863,7]
[314133916,1708015853446,-514.79904498,0.0003863,7]
[314133917,1708015853455,-500.0,0.0003863,7]
[314133918,1708015853466,-502.8241964,0.0003863,7]
[314133919,1708015853475,-500.0,0.0003863,7]
[314133920,1708015853485,-151.0,0.0003863,7]
[314133921,1708015853494,-500.0,0.0003863,7]
[314133922,1708015853504,-500.0,0.0003863,7]
[314133923,1708015853514,-500.0,0.0003863,7]
[314133924,1708015853524,-500.0,0.0003863,7]
[314133925,1708015853534,-501.88224419,0.0003863,7]
[314133926,1708015853544,-518.02342146,0.0003863,7]
[314133927,1708015853554,-250.0,0.0003863,7]
[314133928,1708015853563,-500.0,0.0003863,7]
[314133929,1708015853573,-510.79275836,0.0003863,7]
[314133930,1708015853583,-623.77,0.0003863,7]
[314133931,1708015853593,-500.0,0.0003863,7]
[314133932,1708015853603,-529.04389783,0.0003863,7]
[314133933,1708015853613,-500.0,0.0003863,7]
[314133934,1708015853622,-500.0,0.0003863,7]
[314133935,1708015853631,-151.0,0.0003863,7]
[314133936,1708015853641,-500.0,0.0003863,7]
[314133937,1708015853650,-500.0,0.0003863,7]
[314133938,1708015853659,-500.0,0.0003863,7]
[314133939,1708015853670,-536.01433717,0.0003863,7]
[314133940,1708015853680,-500.0,0.0003863,7]
[314133941,1708015853689,-500.0,0.0003863,7]
[314133942,1708015853698,-500.0,0.0003863,7]
[314133943,1708015853708,-402.28951047,0.0003863,7]
[314133944,1708015853718,-500.0,0.0003863,7]
[314133945,1708015853727,-500.0,0.0003863,7]
[314133946,1708015853737,-500.0,0.0003863,7]
[314133947,1708015853746,-500.0,0.0003863,7]
[314133948,1708015853755,-500.0,0.0003863,7]
[314133949,1708015853765,-500.0,0.0003863,7]
[314133950,1708015853774,-515.78070298,0.0003863,7]
[314133951,1708015853783,-151.0,0.0003863,2]
[314133952,1708015853792,-170.11064494,0.0003863,7]
[314133953,1708015853801,-500.0,0.0003863,2]
[314133954,1708015853811,-151.0,0.0003863,2]
[314133955,1708015853820,-500.0,0.0003863,7]
[314133956,1708015853829,-512.2726976,0.0003863,7]
[314133957,1708015853838,-500.0,0.0003863,7]
[314133958,1708015853847,-500.0,0.0003863,7]
[314133959,1708015853856,-500.0,0.0003863,7]
[314133960,1708015853866,-559.29649862,0.0003863,7]
[314133961,1708015853875,-500.0,0.0003863,7]
[314133962,1708015853885,-500.0,0.0003863,7]
[314133963,1708015853894,-500.0,0.0003863,7]
[314133964,1708015853903,-500.0,0.0003863,7]
[314133965,1708015853912,-500.0,0.0003863,7]
[314133966,1708015853922,-500.0,0.0003863,7]
[314133967,1708015853932,-500.0,0.0003863,7]
[314133968,1708015853941,-500.0,0.0003863,7]
[314133969,1708015853951,-423.49153502,0.0003863,7]
[314133970,1708015853968,-76.50846498,0.0003863,7]
[314133971,1708015853978,-500.0,0.0003863,7]
[314133972,1708015853987,-500.0,0.0003863,7]
[314133973,1708015853996,-500.0,0.0003863,7]
[314133974,1708015854006,-515.24072974,0.0003863,7]
[314133975,1708015854015,-500.0,0.0003863,7]
[314133976,1708015854025,-500.0,0.0003863,7]
[314133977,1708015854034,-544.70951211,0.0003863,7]
[314133978,1708015854044,-500.0,0.0003863,7]
[314133979,1708015854053,-500.0,0.0003863,7]
[314133980,1708015854062,-151.0,0.0003863,7]
[314133981,1708015854071,-500.0,0.0003863,7]
[314133982,1708015854080,-500.0,0.0003863,7]
[314133983,1708015854090,-500.0,0.0003863,7]
[314133984,1708015854100,-500.0,0.0003863,7]
[314133985,1708015854109,-538.94249897,0.0003863,7]
[314133986,1708015854119,-500.0,0.0003863,7]
[314133987,1708015854129,-500.0,0.0003863,7]
[314133988,1708015854138,-500.0,0.0003863,7]
[314133989,1708015854148,-530.86291692,0.0003863,7]
[314133990,1708015854158,-526.70803065,0.0003863,7]
[314133991,1708015854167,-500.0,0.0003863,7]
[314133992,1708015854177,-500.0,0.0003863,7]
[314133993,1708015854186,-475.90111927,0.0003863,7]
[314133994,1708015854196,-500.0,0.0003863,7]
[314133995,1708015854206,-500.0,0.0003863,7]
[314133996,1708015854216,-500.0,0.0003863,7]
[314133997,1708015854226,-784.64,0.0003863,7]
[314133998,1708015854235,-500.0,0.0003863,7]
[314133999,1708015854245,-527.01024581,0.0003863,7]
[314134000,1708015854254,-500.0,0.0003863,7]
[314134001,1708015854264,-500.0,0.0003863,7]
[314134002,1708015854273,-500.0,0.0003863,7]
[314134003,1708015854283,-500.0,0.0003863,7]
[314134004,1708015854292,-500.0,0.0003863,7]
[314134005,1708015854301,-541.27147141,0.0003863,7]
[314134006,1708015854311,-112.59961233,0.0003863,7]
[314134007,1708015854337,-387.40038767,0.0003863,7]
[314134008,1708015854350,-500.0,0.0003863,7]
[314134009,1708015854360,-542.49927847,0.0003863,7]
[314134010,1708015854369,-500.0,0.0003863,7]
[314134011,1708015854380,-500.0,0.0003863,7]
[314134012,1708015854390,-500.0,0.0003863,7]
[314134013,1708015854399,-500.0,0.0003863,7]
[314134014,1708015854409,-500.0,0.0003863,7]
[314134015,1708015854418,-500.0,0.0003863,7]
[314134016,1708015854430,-1549.77,0.0003863,7]
[314134017,1708015854439,-500.0,0.0003863,7]
[314134018,1708015854449,-500.0,0.0003863,7]
[314134019,1708015854459,-500.0,0.0003863,7]
[314134020,1708015854469,-500.0,0.0003863,7]
[314134021,1708015854479,-505.44226708,0.0003863,7]
[314134022,1708015854489,-500.0,0.0003863,7]
[314134023,1708015854499,-500.0,0.0003863,7]
[314134024,1708015854508,-500.0,0.0003863,7]
[314134025,1708015854518,-500.0,0.0003863,7]
[314134026,1708015854527,-500.0,0.0003863,7]
[314134027,1708015854537,-500.0,0.0003863,7]
[314134028,1708015854548,-500.0,0.0003863,7]
[314134029,1708015854559,-500.0,0.0003863,7]
[314134030,1708015854569,-500.0,0.0003863,7]
[314134031,1708015854579,-500.0,0.0003863,7]
[314134032,1708015854588,-500.0,0.0003863,7]
[314134033,1708015854597,-505.69126226,0.0003863,7]
[314134034,1708015854606,-500.0,0.0003863,7]
[314134035,1708015854616,-500.0,0.0003863,7]
[314134036,1708015854625,-500.0,0.0003863,7]
[314134037,1708015854635,-500.0,0.0003863,7]
[314134038,1708015854644,-500.0,0.0003863,7]
[314134039,1708015854654,-500.0,0.0003863,7]
[314134040,1708015854663,-500.0,0.0003863,7]
[314134041,1708015854672,-500.0,0.0003863,7]
[314134042,1708015854683,-500.0,0.0003863,2]
[314134043,1708015854692,-244.04526556,0.0003863,7]
[314134044,1708015854702,-500.0,0.0003863,7]
[314134045,1708015854711,-500.0,0.0003863,7]
[314134046,1708015854723,-1000.0,0.0003863,7]
[314134047,1708015854733,-500.0,0.0003863,7]
[314134048,1708015854742,-625.66507423,0.0003863,7]
[314134049,1708015854752,-500.0,0.0003863,7]
[314134050,1708015854762,-500.0,0.0003863,7]
[314134051,1708015854772,-500.0,0.0003863,7]
[314134052,1708015854781,-330.74352991,0.0003863,7]
[314134053,1708015854802,-687.80647009,0.0003863,7]
[314134054,1708015854812,-508.75386279,0.0003863,7]
[314134055,1708015854821,-500.0,0.0003863,7]
[314134056,1708015854831,-500.0,0.0003863,7]
[314134057,1708015854840,-500.0,0.0003863,7]
[314134058,1708015854850,-550.34935028,0.0003863,7]
[314134059,1708015854859,-500.0,0.0003863,7]
[314134060,1708015854869,-500.0,0.0003863,7]
[314134061,1708015854878,-161.10672897,0.0003863,7]
[314134062,1708015854888,-583.92,0.0003863,7]
[314134063,1708015854898,-500.0,0.0003863,7]
[314134064,1708015854907,-567.16,0.0003863,7]
[314134065,1708015854916,-500.0,0.0003863,7]
[314134066,1708015854926,-500.0,0.0003863,7]
[314134067,1708015854937,-500.0,0.0003863,7]
[314134068,1708015854946,-500.0,0.0003863,7]
[314134069,1708015854956,-500.0,0.0003863,7]
[314134070,1708015854967,-549.86567395,0.0003863,7]
[314134071,1708015854976,-500.0,0.0003863,7]
[314134072,1708015854986,-500.0,0.0003863,7]
[314134073,1708015854996,-500.0,0.0003863,7]
[314134074,1708015855005,-500.0,0.0003863,7]
[314134075,1708015855015,-500.0,0.0003863,7]
[314134076,1708015855024,-346.24230745,0.0003863,7]
[314134077,1708015855037,-153.75769255,0.0003863,7]
[314134078,1708015855047,-500.0,0.0003863,7]
[314134079,1708015855056,-500.0,0.0003863,7]
[314134080,1708015855066,-168.10695745,0.0003863,7]
[314134081,1708015855760,-600.0,0.00035,3]
[314134082,1708015855770,-286.39524637,0.00038345,2]
[314134083,1708015855778,-1949.80475363,0.00038345,2]
[314134084,1708015855790,-268.98826648,0.00038345,2]
[314134085,1708015855956,-1097.33528681,0.00038345,2]
[314134086,1708015855967,-200.0,0.00038437,2]
[314134087,1708015855976,-331.89304255,0.0003863,7]
[314134088,1708015855985,-500.0,0.0003863,7]
[314134089,1708015855995,-500.0,0.0003863,7]
[314134090,1708015856005,-1340.17,0.0003863,7]
[314134091,1708015856014,-500.0,0.0003863,7]
[314134092,1708015856023,-500.0,0.0003863,7]
[314134093,1708015856033,-520.48319741,0.0003863,7]
[314134094,1708015856042,-294.81091334,0.0003863,7]
[314134095,1708015856055,-205.18908666,0.0003863,7]
[314134096,1708015856064,-500.0,0.0003863,7]
[314134097,1708015856073,-746.45,0.0003863,7]
[314134098,1708015856082,-587.40959512,0.0003863,7]
[314134099,1708015856091,-79.3939058,0.0003863,7]
[314134100,1708015856126,-71.6060942,0.0003863,7]
[314134101,1708015856135,-420.08,0.0003863,7]
[314134102,1708015856145,-500.0,0.0003863,7]
[314134103,1708015856155,-500.0,0.0003863,7]
[314134104,1708015856164,-500.0,0.0003863,7]
[314134105,1708015856174,-46.17859663,0.0003863,7]
[314134106,1708015856186,-476.32733602,0.0003863,7]
[314134107,1708015856195,-67.88612247,0.0003863,7]
[314134108,1708015856208,-432.11387753,0.0003863,7]
[314134109,1708015856218,-500.0,0.0003863,7]
[314134110,1708015856228,-500.0,0.0003863,7]
[314134111,1708015856237,-500.0,0.0003863,7]
[314134112,1708015856246,-500.0,0.0003863,7]
[314134113,1708015856255,-510.18,0.0003863,7]
[314134114,1708015856263,-500.0,0.0003863,7]
[314134115,1708015856272,-500.0,0.0003863,7]
[314134116,1708015856281,-500.0,0.0003863,7]
[314134117,1708015856290,-152.27782847,0.0003863,7]
[314134118,1708015856303,-347.72217153,0.0003863,7]
[314134119,1708015856311,-500.0,0.0003863,7]
[314134120,1708015856320,-168.60282847,0.0003863,7]
[314134121,1708015856332,-331.39717153,0.0003863,7]
[314134122,1708015856341,-500.0,0.0003863,7]
[314134123,1708015856350,-364.78890847,0.0003863,7]
[314134124,1708015856427,-135.21109153,0.0003863,7]
[314134125,1708015856436,-500.0,0.0003863,7]
[314134126,1708015856445,-500.0,0.0003863,7]
[314134127,1708015856455,-500.0,0.0003863,7]
[314134128,1708015856465,-500.0,0.0003863,7]
[314134129,1708015856475,-500.0,0.0003863,7]
[314134130,1708015856485,-500.0,0.0003863,7]
[314134131,1708015856495,-500.0,0.0003863,7]
[314134132,1708015856504,-505.18459794,0.0003863,7]
[314134133,1708015856514,-500.0,0.0003863,7]
[314134134,1708015856524,-500.0,0.0003863,7]
[314134135,1708015856534,-500.0,0.0003863,7]
[314134136,1708015856543,-640.12081478,0.0003863,7]
[314134137,1708015856553,-500.0,0.0003863,7]
[314134138,1708015856562,-500.0,0.0003863,7]
[314134139,1708015856571,-500.0,0.0003863,7]
[314134140,1708015856581,-500.0,0.0003863,7]
[314134141,1708015856591,-500.0,0.0003863,7]
[314134142,1708015856600,-500.0,0.0003863,7]
[314134143,1708015856610,-515.12583124,0.0003863,7]
[314134144,1708015856620,-500.0,0.0003863,7]
[314134145,1708015856629,-1000.0,0.0003863,7]
[314134146,1708015856640,-500.0,0.0003863,7]
[314134147,1708015856649,-500.0,0.0003863,7]
[314134148,1708015856658,-500.0,0.0003863,7]
[314134149,1708015856668,-500.0,0.0003863,7]
[314134150,1708015856677,-507.25976438,0.0003863,7]
[314134151,1708015856686,-558.30282808,0.0003863,7]
[314134152,1708015856696,-500.0,0.0003863,7]
[314134153,1708015856705,-500.0,0.0003863,7]
[314134154,1708015856715,-500.0,0.0003863,7]
[314134155,1708015856725,-500.0,0.0003863,7]
[314134156,1708015856734,-500.0,0.0003863,7]
[314134157,1708015856743,-500.0,0.0003863,7]
[314134158,1708015856753,-151.0,0.0003863,7]
[314134159,1708015856762,-500.0,0.0003863,7]
[314134160,1708015856772,-500.0,0.0003863,7]
[314134161,1708015856783,-500.0,0.0003863,7]
[314134162,1708015856793,-500.0,0.0003863,7]
[314134163,1708015856804,-500.0,0.0003863,7]
[314134164,1708015856814,-500.0,0.0003863,7]
[314134165,1708015856824,-500.0,0.0003863,7]
[314134166,1708015856833,-751.81,0.0003863,7]
[314134167,1708015856842,-154.96568356,0.0003863,7]
[314134168,1708015856852,-500.0,0.0003863,7]
[314134169,1708015856861,-500.0,0.0003863,7]
[314134170,1708015856871,-500.0,0.0003863,7]
[314134171,1708015856880,-507.25310414,0.0003863,7]
[314134172,1708015856890,-500.0,0.0003863,7]
[314134173,1708015856900,-302.03527271,0.0003863,7]
[314134174,1708015856909,-500.0,0.0003863,7]
[314134175,1708015856919,-648.27,0.0003863,7]
[314134176,1708015856928,-592.13,0.0003863,7]
[314134177,1708015856937,-571.62106035,0.0003863,7]
[314134178,1708015856947,-153.39098848,0.0003863,7]
[314134179,1708015856956,-500.0,0.0003863,7]
[314134180,1708015856967,-500.0,0.0003863,7]
[314134181,1708015856976,-500.0,0.0003863,7]
[314134182,1708015856986,-500.0,0.0003863,7]
[314134183,1708015856995,-500.0,0.0003863,7]
[314134184,1708015857005,-509.17184813,0.0003863,7]
[314134185,1708015857014,-500.0,0.0003863,7]
[314134186,1708015857024,-508.70345404,0.0003863,7]
[314134187,1708015857033,-500.0,0.0003863,7]
[314134188,1708015857043,-500.0,0.0003863,7]
[314134189,1708015857052,-500.0,0.0003863,7]